[Event "44th Chess Olympiad Open 2022"]
[Site "Chennai"]
[Date "2022.08.05"]
[Round "7.47"]
[White "Al Harazy, Khalid"]
[Black "Zilleruelo Irizarry, Diego"]
[Result "1-0"]
[ECO "B13"]
[WhiteElo "2149"]
[BlackElo "2081"]
[Annotator "TA"]
[PlyCount "99"]
[EventDate "2022.07.29"]
[EventType "team-tourn"]
[EventCountry "IND"]
[SourceTitle "playchess.com"]
[Source "ChessBase"]
[SourceQuality "1"]
[WhiteTeam "Yemen"]
[BlackTeam "Puerto Rico"]
[WhiteTeamCountry "YEM"]
[BlackTeamCountry "PUR"]
[TimeControl "40/5400+30:1800+30"]

{[%evp 12,99,-6,-7,25,0,0,0,20,21,23,5,29,28,38,15,53,37,52,29,25,16,22,17,59,26,16,19,36,8,8,8,8,8,8,4,12,0,0,0,0,0,1,5,19,0,56,51,119,112,112,118,166,108,146,0,0,0,0,0,512,518,587,546,572,572,773,546,546,531,1097,1082,1090,1090,1080,1079,989,1010,1021,915,846,846,4133,3330,29984,29985,29985,29986,29989,29990]} 1. e4 {[%emt 0:00:07]} c6 {[%emt 0:00:02]} 2. d4 {[%emt 0:00:15]} d5 {[%emt 0:00:03]} 3. exd5 {[%emt 0:00:18]} cxd5 {[%emt 0:00:02]} 4. Nf3 {[%emt 0:00:12]} Nc6 {[%emt 0:01:04]} 5. Bd3 {[%emt 0:00:05]} Bg4 {[%emt 0:00:10]} 6. c3 {[%emt 0:00:08]} Qc7 {[%emt 0:00:13]} 7. O-O {[%emt 0:00:28]} Nf6 {[%emt 0:00:12] B13: Caro-Kann: Exchange Variation and Panov-Botvinnik Attack.} 8. Re1 {[%emt 0:01:59]} e6 {[%emt 0:00:10]} 9. Bg5 {[%emt 0:00:12]} Be7 {[%emt 0:00:15] The position is equal.} 10. Nbd2 {[%emt 0:00:05][%cal Bb1d2,Bd2f3,Bf3e5][%mdl 32]} O-O {[%emt 0:00:52]} 11. Qa4 {[%emt 0:00:40] [#]} Bxf3 $146 {[%emt 0:17:38]} ({Predecessor:} 11... a6 12. a3 Bxf3 13. Nxf3 b5 14. Qc2 h6 15. Bh4 Rfc8 16. Qe2 Nd7 17. Bxe7 Nxe7 {½-½ (42) Krebs,D (2072)-Schmid,H (2170) Bad Woerishofen 2007}) 12. Nxf3 {[%emt 0:02:02]} a6 {[%emt 0:00:02]} 13. Ne5 {[%emt 0:03:15]} b5 {[%emt 0:03:18]} 14. Qc2 {[%emt 0:05:22]} h6 {[%emt 0:00:39]} 15. Bh4 {[%emt 0:04:45]} (15. Bf4 $5 {[%cal Re5g6]}) 15... Rfc8 {[%emt 0:05:29][%cal Oc6d4]} 16. Qe2 {[%emt 0:04:47][%cal Oe5f7]} Nxe5 {[%emt 0:05:28]} 17. dxe5 {[%emt 0:04:08]} Nh7 {[%emt 0:00:40]} 18. Bxe7 {[%emt 0:16:34]} Qxe7 {[%emt 0:01:00]} 19. a4 {[%emt 0:02:11]} Qb7 {[%emt 0:18:25]} 20. axb5 {[%emt 0:03:53]} (20. Ra3 {is interesting.} Nf8 21. axb5 axb5 22. Rb3) 20... axb5 {[%emt 0:02:53]} 21. Bxb5 {[%emt 0:00:33] Threatening Ba6.} Rxa1 {[%emt 0:02:43]} 22. Rxa1 {[%emt 0:00:20]} Rb8 {[%emt 0:00:04]} 23. Ra5 {[%emt 0:09:59]} Qc7 {[%emt 0:02:21]} 24. Ra2 {[%emt 0:12:05]} Nf8 {[%emt 0:00:30]} 25. Bd3 {[%emt 0:02:05]} Nd7 {[%emt 0:06:20]} 26. f4 $36 {[%emt 0:00:05][%mdl 2048] White is pushing.} Qb6+ {[%emt 0:00:39]} 27. Kf1 {[%emt 0:06:17]} Qb3 {[%emt 0:07:32]} 28. Bb1 {[%emt 0:03:40]} Nc5 {[%emt 0:00:52]} ({Black should play} 28... g6 $11) 29. Ra3 $14 {[%emt 0:01:06]} Qxa3 {[%emt 0:16:20] [#]} 30. Bh7+ $1 $16 {[%emt 0:00:17][%mdl 576] Decoy} Kxh7 {[%emt 0:00:01]} 31. Qc2+ {[%emt 0:00:10]} (31. bxa3 $2 {is the wrong capture.} Rb1+ 32. Kf2 Rb2 $3 {[%mdl 512]} 33. Qxb2 Nd3+ 34. Ke3 Nxb2 $19) 31... g6 {[%emt 0:00:02]} (31... Ne4 $16 {might work better.} 32. bxa3 Rc8) 32. bxa3 $18 {[%emt 0:00:09][%mdl 4096] Endgame KQ-KRN} Rb3 {[%emt 0:00:04] [#]} 33. a4 {[%emt 0:04:59]} (33. g4 $1 $16) 33... Ra3 $11 {[%emt 0:00:24]} 34. c4 {[%emt 0:06:14][%cal Bc3c4,Bc4c5,Bc5c6,Bc6c7][%mdl 32] Threatens to win with cxd5.} Ra1+ $1 {[%emt 0:00:29]} 35. Ke2 {[%emt 0:04:25]} Nxa4 $2 {[%emt 0:07:30][%mdl 8192] White leaves nothing to chance now.} (35... d4 $11 {and Black is okay.} 36. Qd2 d3+ 37. Kf3 Rxa4) 36. c5 $18 {[%emt 0:01:41]} Ra3 {[%emt 0:02:32]} 37. Kd2 {[%emt 0:01:36]} d4 {[%emt 0:00:53]} 38. c6 {[%emt 0:00:47] aiming for c7.} Nc3 {[%emt 0:00:49]} 39. c7 {[%emt 0:00:23]} Ra8 {[%emt 0:00:02]} 40. Qb2 {[%emt 0:00:24]} ({Not} 40. Kd3 Rc8 41. g4 (41. Kxd4 Rxc7 42. Qf2 Nd5 $16) 41... Rxc7 $16) 40... Ne4+ {[%emt 0:00:57]} 41. Kd3 {[%emt 0:30:36]} Nc5+ {[%emt 0:04:27]} 42. Kxd4 {[%emt 0:00:00]} Na6 {[%emt 0:00:03]} 43. Qb7 {[%emt 0:00:00]} Nxc7 {[%emt 0:00:01]} 44. Qxc7 {[%emt 0:00:00] KQ-KR} Ra4+ {[%emt 0:00:14]} 45. Ke3 {[%emt 0:00:00]} Kg7 {[%emt 0:00:06]} 46. Qe7 {[%emt 0:00:00] g4 is the strong threat.} Ra2 {[%emt 0:00:25]} 47. g4 {[%emt 0:00:00][%cal Of4f5,Bg2g4,Bg4f5][%mdl 32] Black must now prevent f5!} Rxh2 {[%emt 0:01:46]} 48. f5 {[%emt 0:00:00] White mates.} gxf5 {[%emt 0:01:06]} 49. gxf5 {[%emt 0:00:00]} Rh5 {[%emt 0:00:20]} 50. Qf6+ {[%emt 0:00:00] Weighted Error Value: White=0.21 (precise) /Black=0.55} 1-0

[Event "44th Chess Olympiad Open 2022"]
[Site "Chennai"]
[Date "2022.08.05"]
[Round "7.47"]
[White "Fellman, Mike"]
[Black "Al-Zendani, Zendan"]
[Result "1/2-1/2"]
[ECO "A53"]
[WhiteElo "2107"]
[BlackElo "2284"]
[Annotator "NA RC"]
[PlyCount "89"]
[EventDate "2022.07.29"]
[EventType "team-tourn"]
[EventCountry "IND"]
[SourceTitle "playchess.com"]
[Source "ChessBase"]
[SourceQuality "1"]
[WhiteTeam "Puerto Rico"]
[BlackTeam "Yemen"]
[WhiteTeamCountry "PUR"]
[BlackTeamCountry "YEM"]
[TimeControl "40/5400+30:1800+30"]

1. d4 {[%emt 0:00:02]} d6 {[%emt 0:00:59]} 2. e4 {[%emt 0:00:28]} Nf6 {[%emt 0:00:05]} 3. f3 {[%emt 0:00:05]} c6 {[%emt 0:01:24]} 4. c4 {[%emt 0:00:06]} Nbd7 {[%emt 0:00:33]} 5. Nc3 {[%emt 0:01:28]} e5 {[%emt 0:02:17]} 6. d5 {[%emt 0:01:29]} Be7 {[%emt 0:02:36]} 7. Be3 {[%emt 0:02:38]} O-O {[%emt 0:02:16]} 8. Qd2 {[%emt 0:04:03]} a6 {[%emt 0:03:15]} 9. Nh3 {[%emt 0:01:49]} cxd5 {[%emt 0:04:53]} 10. cxd5 {[%emt 0:00:07]} b5 {[%emt 0:00:25]} 11. Nf2 {[%emt 0:00:46]} Nb6 {[%emt 0:01:36]} 12. b3 {[%emt 0:06:03]} b4 {[%emt 0:28:15]} 13. Ncd1 {[%emt 0:03:36]} a5 {[%emt 0:01:05]} 14. a3 {[%emt 0:02:26]} bxa3 {[%emt 0:10:12]} 15. Rxa3 {[%emt 0:00:58]} a4 {[%emt 0:13:25]} 16. Nb2 {[%emt 0:02:46]} Bd7 {[%emt 0:01:27]} 17. Be2 {[%emt 0:16:35]} axb3 {[%emt 0:02:41]} 18. Rxb3 {[%emt 0:01:58]} Ra1+ {[%emt 0:00:11]} 19. Nfd1 {[%emt 0:01:47]} Na4 {[%emt 0:01:56]} 20. O-O {[%emt 0:09:39]} Qa8 {[%emt 0:00:10]} 21. Nc4 {[%emt 0:08:11]} Rb8 {[%emt 0:01:34]} 22. Rxb8+ {[%emt 0:01:53]} Qxb8 {[%emt 0:00:07]} 23. Nc3 {[%emt 0:01:00]} Rxf1+ {[%emt 0:00:15]} 24. Bxf1 {[%emt 0:01:10]} Bd8 {[%emt 0:07:30]} 25. Nxa4 {[%emt 0:00:42]} Bxa4 {[%emt 0:00:04]} 26. Qa2 {[%emt 0:03:10]} Bb3 {[%emt 0:06:30]} 27. Qb2 {[%emt 0:02:30]} Bc7 {[%emt 0:00:07]} 28. Nd2 {[%emt 0:02:05]} Ba4 {[%emt 0:00:07]} 29. Qxb8+ {[%emt 0:03:41]} Bxb8 {[%emt 0:00:05]} 30. Nc4 {[%emt 0:04:32]} Nd7 {[%emt 0:02:43]} 31. Nb2 {[%emt 0:02:49]} Bb3 {[%emt 0:00:34]} 32. Bc4 {[%emt 0:00:35]} Bxc4 {[%emt 0:00:31]} 33. Nxc4 {[%emt 0:00:06]} Bc7 {[%emt 0:00:08]} 34. Kf1 {[%emt 0:00:37]} g6 {[%emt 0:02:26]} 35. Ke2 {[%emt 0:00:20]} f5 {[%emt 0:00:23]} 36. Na3 {[%emt 0:01:50]} fxe4 {[%emt 0:00:09]} 37. fxe4 {[%emt 0:00:01]} Kf7 {[%emt 0:01:43]} 38. Nb5 {[%emt 0:02:01]} Bb8 {[%emt 0:00:04]} 39. Kd3 {[%emt 0:02:36]} Ke8 {[%emt 0:00:17]} 40. Kc4 {[%emt 0:01:22]} Nf6 {[%emt 0:00:42]} 41. Nc3 {[%emt 0:30:51]} Kd7 {[%emt 0:30:48]} 42. Kb5 {[%emt 0:00:46]} Bc7 {[%emt 0:00:07]} 43. h3 {[%emt 0:01:32]} Bd8 {[%emt 0:01:06]} 44. g4 {[%emt 0:01:23]} Ne8 {[%emt 0:03:16]} 45. Kc4 {[%emt 0:07:11]} 1/2-1/2

[Event "44th Chess Olympiad Open 2022"]
[Site "Chennai"]
[Date "2022.08.05"]
[Round "7.47"]
[White "Pinales Roussel, Gabriel"]
[Black "Al-Subaihi, Khalil"]
[Result "1-0"]
[ECO "A21"]
[WhiteElo "1973"]
[BlackElo "2141"]
[Annotator "TA"]
[PlyCount "73"]
[EventDate "2022.07.29"]
[EventType "team-tourn"]
[EventCountry "IND"]
[SourceTitle "playchess.com"]
[Source "ChessBase"]
[SourceQuality "1"]
[WhiteTeam "Puerto Rico"]
[BlackTeam "Yemen"]
[WhiteTeamCountry "PUR"]
[BlackTeamCountry "YEM"]
[TimeControl "40/5400+30:1800+30"]

{[%evp 9,73,33,37,-25,-25,-23,-16,-54,-8,-20,-15,-18,-26,-16,-23,-116,-112,-114,-116,-120,-115,-118,-32,-42,-52,-70,-54,-78,28,35,263,-28,64,73,73,73,73,66,75,14,6,0,47,54,364,364,602,118,263,257,255,85,115,108,99,95,117,109,29986,29987,29992,29993,29993,29991,29991,29992]} 1. c4 {[%emt 0:00:04]} e5 {[%emt 0:00:08]} 2. Nc3 {[%emt 0:00:22]} f5 {[%emt 0:00:39]} 3. d4 {[%emt 0:02:04]} e4 {[%emt 0:01:46]} 4. g3 {[%emt 0:00:37]} Bb4 {[%emt 0:04:45]} 5. Nh3 {[%emt 0:01:53]} Nf6 {[%emt 0:03:15] [#]} 6. a3 $146 {[%emt 0:03:36] A21: English Opening: 1...e5 2 Nc3.} (6. Bg2 $14) ({Predecessor:} 6. Qb3 c5 7. dxc5 Na6 8. Bg5 h6 9. Bxf6 Qxf6 10. Nf4 Bxc3+ 11. Qxc3 Qxc3+ 12. bxc3 Nxc5 {0-1 (38) Anurag,M (2499)-Karthikeyan,M (2606) Chess.com INT 2021}) 6... Bxc3+ $11 {[%emt 0:00:16]} 7. bxc3 {[%emt 0:00:05]} O-O {[%emt 0:00:29]} 8. Bg2 {[%emt 0:00:12] The position is equal.} b6 {[%emt 0:05:46]} (8... Nc6 $15) 9. O-O {[%emt 0:06:30]} Nc6 {[%emt 0:01:09]} 10. f3 {[%emt 0:03:05]} Na5 {[%emt 0:05:39]} 11. Bg5 {[%emt 0:05:19] Hoping for fxe4.} Bb7 {[%emt 0:08:05]} (11... Nxc4 {feels hotter.} 12. fxe4 fxe4 13. Bxe4 d5) 12. d5 {[%emt 0:10:41]} (12. fxe4 $11 {keeps the balance.} fxe4 13. c5) 12... exf3 $17 {[%emt 0:05:52]} (12... Nxc4 $6 13. fxe4 fxe4 14. Qd4 $15) 13. Rxf3 {[%emt 0:07:48]} h6 $1 {[%emt 0:02:18]} (13... Nxc4 $6 14. Rxf5 Nd6 15. Rf4 $11) 14. Bxf6 {[%emt 0:00:15]} Qxf6 {[%emt 0:00:29]} 15. c5 {[%emt 0:11:55]} Qe5 {[%emt 0:09:56]} (15... bxc5 16. Qa4 $15) (15... Rae8 $17 {...Nc4 is the strong threat.} 16. cxb6 axb6) 16. Nf4 $15 {[%emt 0:02:42] And now Ng6 would win.} Kh7 {[%emt 0:00:15] Prevents Ng6.} (16... bxc5 $2 17. Qa4 $18 (17. Ng6 Qe4 $16)) 17. Qd3 {[%emt 0:09:37]} Rae8 $1 {[%emt 0:06:59] Strongly threatening ...Nb3.} (17... bxc5 $2 18. Qb5 $18) 18. Raf1 {[%emt 0:03:13]} g5 {[%emt 0:13:47]} (18... bxc5 19. Qb5 $16) (18... Nb3 $1 $17 {[%cal Rb3c5]} 19. cxb6 axb6) 19. c6 $11 {[%emt 0:00:20]} gxf4 $2 {[%emt 0:03:48]} (19... Bc8 $14 20. cxd7 Bxd7) 20. cxb7 $2 {[%emt 0:00:06]} (20. cxd7 $18 Rd8 21. Rxf4) 20... Qxe2 {[%emt 0:02:55]} (20... Nxb7 $11 21. Bh3 Nd6) 21. b8=Q $1 $14 {[%emt 0:03:49]} Qxd3 {[%emt 0:04:57]} 22. Qxc7 {[%emt 0:00:19]} Qxd5 {[%emt 0:13:04]} 23. Rxf4 {[%emt 0:00:43]} Qe6 {[%emt 0:00:36]} 24. Rd4 {[%emt 0:01:18]} (24. Qxa7 $16 {Threatens to win with Bh3.} Nc4 25. Qa4) 24... Re7 $11 {[%emt 0:02:02]} 25. Qf4 {[%emt 0:07:51][%cal Og2e4]} Qg6 {[%emt 0:02:41]} (25... Rf6 $11) 26. Bh3 $14 {[%emt 0:03:19][%cal Rh3f5]} Qh5 {[%emt 0:01:17][%mdl 8192]} (26... Ref7 $14) 27. Bxf5+ $18 {[%emt 0:01:38]} Kg7 $2 {[%emt 0:00:12] [#]} (27... Rxf5 28. Qxf5+ Qxf5 29. Rxf5 Nc6) 28. Rd5 $2 {[%emt 0:02:42]} (28. Qd6 $1 $18 {[%cal Rd6e7] is the precise move to win.} Ref7 29. Qe5+ (29. g4 Qg5 $16) 29... Rf6 30. Rxd7+ R8f7 31. g4) 28... Qg5 {[%emt 0:00:50]} (28... Nc6 $16) 29. Qd4+ {[%emt 0:02:34]} (29. Rxd7 Rxd7 30. Qxg5+ hxg5 $16) 29... Qf6 {[%emt 0:00:05] [#]} 30. Rxd7 {[%emt 0:01:10] Chess con chili.} (30. Qd3 $1 $18 {and the rest is easy.} Rff7 31. Rf4 (31. Rxd7 Rxd7 32. Bxd7 Qxf1+ 33. Qxf1 Rxf1+ 34. Kxf1 Nc4 $16) (31. Rd6 Qe5 $16)) 30... Rxd7 {[%emt 0:00:15]} 31. Qxd7+ {[%emt 0:00:33]} ({Don't play} 31. Bxd7 Qxd4+ 32. cxd4 Rxf1+ 33. Kxf1 Nb3 $14) 31... Rf7 {[%emt 0:00:10]} 32. Qd3 $36 {[%emt 0:00:19][%mdl 2048] White is really pushing. White is more active.} Qe5 {[%emt 0:00:36]} 33. Rf4 {[%emt 0:00:31]} Nb3 $2 {[%emt 0:00:53][%mdl 8192]} (33... Nb7 $16) 34. Rg4+ {[%emt 0:00:50] White mates.} Kf8 {[%emt 0:01:04]} 35. Qd8+ {[%emt 0:00:25]} Qe8 {[%emt 0:00:05] [#]} 36. Rg8+ $3 {[%emt 0:00:04][%mdl 512]} Kxg8 {[%emt 0:00:06]} 37. Qxe8+ {[%emt 0:00:05] Weighted Error Value: White=0.47/Black=0.82} 1-0

[Event "44th Chess Olympiad Open 2022"]
[Site "Chennai"]
[Date "2022.08.05"]
[Round "7.48"]
[White "Cu Hor, Winston Darwin"]
[Black "Alahakoon, Isuru"]
[Result "1-0"]
[ECO "A09"]
[WhiteElo "2328"]
[BlackElo "2000"]
[Annotator "ChessBase"]
[PlyCount "59"]
[EventDate "2022.07.29"]
[EventType "team-tourn"]
[EventCountry "IND"]
[SourceTitle "playchess.com"]
[Source "ChessBase"]
[SourceQuality "1"]
[WhiteTeam "Guatemala"]
[BlackTeam "Sri Lanka"]
[WhiteTeamCountry "GUA"]
[BlackTeamCountry "SRI"]
[TimeControl "40/5400+30:1800+30"]

1. Nf3 {[%emt 0:00:07]} d5 {[%emt 0:01:53]} 2. c4 {[%emt 0:00:14]} d4 {[%emt 0:00:47]} 3. g3 {[%emt 0:00:06]} Nc6 {[%emt 0:00:52]} 4. Bg2 {[%emt 0:00:06]} e5 {[%emt 0:00:33]} 5. O-O {[%emt 0:00:08]} Nf6 {[%emt 0:02:28]} 6. d3 {[%emt 0:05:36]} Be7 {[%emt 0:00:43]} 7. Na3 {[%emt 0:01:45]} O-O {[%emt 0:02:09]} 8. Nc2 {[%emt 0:00:06]} a5 {[%emt 0:01:33]} 9. b3 {[%emt 0:02:51]} Re8 {[%emt 0:06:14]} 10. a3 {[%emt 0:01:40]} h6 {[%emt 0:11:12]} 11. Bb2 {[%emt 0:05:21]} Nd7 {[%emt 0:03:48]} 12. e3 {[%emt 0:01:17]} Nc5 {[%emt 0:06:35]} 13. exd4 {[%emt 0:02:44]} Nxb3 {[%emt 0:02:48]} 14. dxe5 {[%emt 0:02:01]} Nxa1 {[%emt 0:00:33]} 15. Bxa1 {[%emt 0:00:29]} Be6 {[%emt 0:07:52]} 16. Qe2 {[%emt 0:03:45]} Qd7 {[%emt 0:09:23]} 17. Rb1 {[%emt 0:00:14]} Rab8 {[%emt 0:07:11]} 18. d4 {[%emt 0:02:13]} Bh3 {[%emt 0:01:54]} 19. d5 {[%emt 0:08:31]} Bxg2 {[%emt 0:06:45]} 20. Kxg2 {[%emt 0:04:19]} Na7 {[%emt 0:03:29]} 21. Qe4 {[%emt 0:18:25]} Bc5 {[%emt 0:09:35]} 22. Ncd4 {[%emt 0:02:05]} Nc8 {[%emt 0:06:18]} 23. e6 {[%emt 0:08:16]} fxe6 {[%emt 0:03:45]} 24. Nxe6 {[%emt 0:01:44]} Bxa3 {[%emt 0:02:02]} 25. Qg4 {[%emt 0:05:58]} Rxe6 {[%emt 0:01:42]} 26. dxe6 {[%emt 0:00:43]} Qe7 {[%emt 0:00:11]} 27. Ne5 {[%emt 0:00:51]} Bb4 {[%emt 0:01:12]} 28. Nd7 {[%emt 0:00:31]} Ra8 {[%emt 0:00:27]} 29. Bf6 {[%emt 0:00:23]} h5 {[%emt 0:00:33]} 30. Qg6 {[%emt 0:00:16]} 1-0

[Event "44th Chess Olympiad Open 2022"]
[Site "Chennai"]
[Date "2022.08.05"]
[Round "7.48"]
[White "Liyanage, Ranindu Dilshan"]
[Black "Juarez Flores, Carlos A."]
[Result "1/2-1/2"]
[ECO "C01"]
[WhiteElo "2286"]
[BlackElo "2335"]
[Annotator "TA"]
[PlyCount "97"]
[EventDate "2022.07.29"]
[EventType "team-tourn"]
[EventCountry "IND"]
[SourceTitle "playchess.com"]
[Source "ChessBase"]
[SourceQuality "1"]
[WhiteTeam "Sri Lanka"]
[BlackTeam "Guatemala"]
[WhiteTeamCountry "SRI"]
[BlackTeamCountry "GUA"]
[TimeControl "40/5400+30:1800+30"]

{[%evp 11,97,0,46,36,41,49,42,42,54,49,53,53,49,32,43,57,110,106,102,105,102,47,140,124,114,104,139,126,121,158,229,75,130,22,37,27,26,0,0,0,0,0,0,0,38,0,0,-1,-9,-9,-6,-18,-13,-73,0,0,0,0,0,0,0,0,0,0,0,0,36,18,18,18,18,18,165,69,69,70,102,0,0,0,0,0,0,0,0,0,0,0]} 1. e4 {[%emt 0:00:09]} e6 {[%emt 0:00:21]} 2. d4 {[%emt 0:00:11]} d5 {[%emt 0:00:02]} 3. Nc3 {[%emt 0:00:10]} Bb4 {[%emt 0:00:07]} 4. exd5 {[%emt 0:00:18]} exd5 {[%emt 0:00:14]} 5. Bd3 {[%emt 0:00:07]} Nf6 {[%emt 0:00:07]} 6. Nge2 {[%emt 0:00:50]} Bg4 {[%emt 0:01:52]} (6... O-O $11 {might be stronger.}) 7. f3 $14 {[%emt 0:00:35] C01: French: Exchange Variation.} Bh5 {[%emt 0:00:30] [#]} 8. g4 $146 {[%emt 0:01:00]} ({Predecessor:} 8. Nf4 Bg6 9. Qe2+ Qe7 10. Qxe7+ Kxe7 11. Nxg6+ hxg6 12. Bg5 Nc6 13. Kf2 Bxc3 14. bxc3 Kd7 {1-0 (49) Krzyzanowski,M (2477)-Wang,Y (2433) Aracaju 2018}) 8... Bg6 {[%emt 0:00:47]} 9. h4 {[%emt 0:00:12][%cal Bh2h4,Bh4h5][%mdl 32] White is slightly better.} c6 {[%emt 0:02:07]} 10. h5 {[%emt 0:00:48]} Bxd3 {[%emt 0:00:06]} 11. Qxd3 {[%emt 0:00:06]} Nbd7 {[%emt 0:03:47]} 12. g5 {[%emt 0:03:19]} Ng8 {[%emt 0:00:15]} 13. Bf4 {[%emt 0:01:45]} Be7 {[%emt 0:05:08]} (13... h6 $14) 14. O-O-O $16 {[%emt 0:09:18]} Bxg5 {[%emt 0:02:03]} 15. Qe3+ {[%emt 0:00:06]} Be7 {[%emt 0:00:17]} 16. Rdg1 {[%emt 0:12:10]} (16. Ng3 $16) 16... Nf8 {[%emt 0:13:53]} (16... Nh6 $1 $14) 17. Rxg7 {[%emt 0:02:26]} Ne6 {[%emt 0:00:09]} 18. h6 {[%emt 0:00:18]} Bf6 {[%emt 0:04:44]} 19. Be5 $1 {[%emt 0:07:54] 0x0.0005ebee8316dp-1022s more active pieces.} Bxe5 {[%emt 0:00:17]} 20. Qxe5 {[%emt 0:00:09] Black must now prevent Rg4.} ({But not} 20. dxe5 d4 21. Qg1 dxc3 $14) 20... Ne7 {[%emt 0:15:29] [#]} (20... Qb8 $16) 21. Qf6 $2 {[%emt 0:18:38]} (21. Nf4 $1 $18 {[%cal Rf4e6]} Qb8 22. Nxe6 Qxe5 23. dxe5 fxe6 24. Ne2) 21... Rf8 {[%emt 0:07:56] [#]} (21... Qd6 $142) 22. Rxh7 {[%emt 0:12:05]} ({White should play} 22. Nf4 $1 $16 Ng6 23. Qxd8+ Rxd8 24. Nxe6 fxe6 25. Na4 (25. Rxb7 Rf7 $14)) 22... Ng6 $11 {[%emt 0:01:38]} 23. Qxd8+ {[%emt 0:01:02]} Rxd8 {[%emt 0:00:48]} 24. Rg1 {[%emt 0:01:24]} (24. f4 $5 Ngxf4 25. Nxf4 Nxf4 26. Re1+ Ne6 27. Ne2 $14) 24... Nh4 {[%emt 0:03:50]} 25. f4 {[%emt 0:02:14]} Ke7 {[%emt 0:03:32]} 26. Ng3 {[%emt 0:08:45] Prevents Nf5.} Nxd4 {[%emt 0:03:24]} 27. Re1+ {[%emt 0:01:31]} Kd6 {[%emt 0:08:56]} 28. Rh1 {[%emt 0:03:34]} Nhf5 {[%emt 0:01:30]} 29. Nxf5+ {[%emt 0:00:15]} Nxf5 {[%emt 0:00:02]} 30. Re1 $132 {[%emt 0:00:09][%mdl 2048] White has counterplay} Rd7 {[%emt 0:04:26]} 31. Re5 {[%emt 0:02:29]} Nd4 {[%emt 0:01:37]} 32. Kd1 {[%emt 0:06:59]} (32. Ne2 $11 {remains equal.} Nf3 33. Re3) 32... f6 {[%emt 0:04:40]} (32... Re7 $17 33. Rh5 Rfe8) 33. Rxd7+ {[%emt 0:00:25]} Kxd7 {[%emt 0:00:02][%mdl 4096] Endgame KRN-KRN} 34. Rh5 {[%emt 0:00:13][%cal Oc3d5]} Ke6 {[%emt 0:00:46]} 35. Ne2 {[%emt 0:01:23]} Nf5 {[%emt 0:03:55]} 36. c3 {[%emt 0:01:14]} Rh8 {[%emt 0:03:21]} 37. h7 {[%emt 0:00:17]} Ng7 {[%emt 0:01:22]} 38. Rh6 {[%emt 0:01:13]} Kf5 {[%emt 0:03:07]} 39. Nd4+ {[%emt 0:00:24]} Ke4 $1 {[%emt 0:00:49]} 40. Rxf6 {[%emt 0:02:33]} Rxh7 {[%emt 0:00:02]} 41. Rf7 {[%emt 0:10:40] Hoping for Re7+.} c5 {[%emt 0:01:04] [#]} (41... Rh1+ $11 {and Black is okay.} 42. Kc2 Rh2+ 43. Kb3 c5) 42. Re7+ {[%emt 0:01:55]} ({White should try} 42. Nb3 $1 $18) 42... Kxf4 $14 {[%emt 0:04:05]} 43. Ne6+ {[%emt 0:00:25]} Ke5 {[%emt 0:01:25] [#] aiming for ...Rh1+.} 44. Nxg7+ {[%emt 0:02:11]} (44. Nc7+ $1 $16 Kf5 45. Nxd5) 44... Kf6 $11 {[%emt 0:00:26] The position is equal.} 45. Rd7 {[%emt 0:00:19] And now Ne8+ would win.} Rxg7 {[%emt 0:00:24]} 46. Rxd5 {[%emt 0:00:06]} Rg2 {[%emt 0:00:30]} 47. Rd2 {[%emt 0:00:31]} Rxd2+ {[%emt 0:00:58]} 48. Kxd2 {[%emt 0:00:08] Strongly threatening Kd3.} Ke5 {[%emt 0:01:03]} 49. Ke3 {[%emt 0:00:33] Weighted Error Value: White=0.21 (precise) /Black=0.18 (very precise)} 1/2-1/2